Cogmind - Beta 15 @@@ ROGUE MODE // 2025.07.18 @ 13:03:56 Player: carterz30cal Result: Destroyed by H-55 Commando with Gauss Rifle Performance ------------- Evolutions (2) 1000 Regions Visited (3) 600 Robots Destroyed (124) 620 Value Destroyed (3263) 3263 Prototype IDs (5) 100 Alien Tech Used (0) 0 Bonus (110) 110 TOTAL SCORE: 5693 Bonus ------- High Alert Combat Kills 110 Cogmind --------- Core Integrity 0/550 Matter 166/300 Energy 72/100 System Corruption 0% Temperature Cool (0) Movement Core (50) Location -8/Materials Parts ------- > --- POWER (1) -------- (None) > --- PROPULSION (4) --- (None) > --- UTILITY (3) ------ (None) > --- WEAPON (3) ------- (None) > --- INVENTORY (5) ---- Light Treads Light Treads Compact Matter Pod (150) Light Armor Plating High-powered Tractor Beam Peak State ------------ > --- POWER ------------ Nuclear Core > --- PROPULSION ------- Light Treads Light Treads Armored Treads Advanced Treads > --- UTILITY ---------- Huge Storage Unit Targeting Computer Advanced Targeting Computer > --- WEAPON ----------- Heavy Assault Rifle High-powered Shotgun Improved Light Cannon > --- INVENTORY -------- Light Nuclear Core Light Treads Light Treads Light Treads Light Treads Light Treads Light Treads Light Treads Advanced Heat Sink High-capacity Storage Unit Compact Matter Pod Utility Shielding Light Armor Plating Light Armor Plating High-powered Tractor Beam Improved EM Shotgun Medium Laser Beam Cannon [Rating: 26] Favorites ----------- Power Ion Engine Engine Ion Engine Power Core Nuclear Core Propulsion Light Treads Treads Light Treads Utility High-capacity Storage Unit Device Improved Heat Sink Storage High-capacity Storage Unit Processor Transport Network Coupler Protection Light Armor Plating Weapon Beam Cannon Energy Gun Improved EM Shotgun Energy Cannon Beam Cannon Ballistic Gun Heavy Assault Rifle Ballistic Cannon Improved Light Cannon Build | -11 -10 -9 -8 ------- Run | Yrd Mat Mat Mat Slots Evolved 4 | . . 2 2 Power . | . . . . Propulsion 2 | . . . 2 Utility 1 | . . 1 . Weapon 1 | . . 1 . Parts Attached 64 | 6 9 27 22 Power 6 | 1 1 2 2 Engine 4 | 1 1 2 . Core 2 | . . . 2 Reactor . | . . . . Propulsion 20 | 2 1 7 10 Treads 20 | 2 1 7 10 Leg . | . . . . Wheel . | . . . . Hover . | . . . . Flight . | . . . . Utility 16 | 1 5 8 2 Device 5 | . 2 3 . Storage 4 | 1 2 1 . Processor 4 | . 1 1 2 Hackware . | . . . . Protection 3 | . . 3 . Artifact . | . . . . Weapon 22 | 2 2 10 8 Energy Gun 7 | . . 5 2 Energy Cannon 5 | . 2 2 1 Ballistic Gun 9 | 2 . 3 4 Ballistic Cannon 1 | . . . 1 Launcher . | . . . . Special Weapon . | . . . . Impact Weapon . | . . . . Slashing Weapon . | . . . . Piercing Weapon . | . . . . Special Melee Weapon . | . . . . Unidentified Prototypes 3 | . . 3 . Parts Lost 22 | . . 4 18 Power 2 | . . . 2 Propulsion 6 | . . . 6 Utility 4 | . . 2 2 Weapon 10 | . . 2 8 Highest Loss Streak 6 | . . 2 6 To Critical Strikes . | . . . . Average Backups 14 | 1 11 16 15 Power 1 | . 1 1 . Propulsion 4 | . 1 5 6 Utility 3 | . 2 3 4 Weapon 5 | . 5 5 3 Tool/Special . | . . . . Unused Backups 12 | . . 5 7 Power 1 | . . 1 . Propulsion 2 | . . 2 . Utility 7 | . . . 7 Weapon 2 | . . 2 . Tool/Special . | . . . . Average Slot Usage (%) 98 | . 97 99 96 Engine 9 | . 14 11 . Core 2 | . . . 8 Treads 26 | . 28 22 35 Device 8 | . 7 11 1 Storage 11 | . 14 11 8 Processor 6 | . 3 5 11 Protection 3 | . . 4 4 Energy Gun 4 | . . 6 3 Energy Cannon 14 | . 15 19 2 Ballistic Gun 10 | . 12 6 17 Peak Build Rating 26 | 6 10 21 26 Average Rating 15 | 4 8 15 21 On Entrance 9 | . 6 10 21 Naked Turns 4 | . . . 4 Heaviest Build 101 | 13 52 101 101 Greatest Support 82 | 40 40 44 82 Greatest Overweight (x) 2 | . 1 2 1 Average Overweight (x) . | . . 1 . Largest Inventory Capacity 25 | 8 20 25 25 Average Capacity 20 | 6 18 20 24 Most Carried 20 | 2 17 20 18 Average Carried 14 | 1 11 16 15 Final Capacity 25 | 8 20 25 5 Final Carried 18 | 2 17 18 5 Class Distribution -------------------- 28% | Mutant 27% | Skirmisher 19% | Scavenger-Gunner 12% | Scavenger-Tank 9% | Tank Dominant Class ---------------- Mutant | -10/Materials Skirmisher | -9/Materials Scavenger-Gunner | -8/Materials Resources | -11 -10 -9 -8 ----------- Run | Yrd Mat Mat Mat Matter Collected 2202 | 234 327 643 998 Remotely . | . . . . Salvage Created 4600 | . 726 1782 2092 Parts 283 | . 53 115 115 Haulers Intercepted 9 | . 2 4 3 Recyclers Shooed 2 | . . 1 1 Parts Field Recycled . | . . . . Retrieved Matter . | . . . . Parts Self-Destructed . | . . . . Prevented . | . . . . Kills | -11 -10 -9 -8 ------- Run | Yrd Mat Mat Mat Combat Hostiles Destroyed 82 | . 19 31 32 Guns 47 | . 12 13 22 Cannons 30 | . 7 17 6 AOE 3 | . . . 3 Classes Destroyed 13 | . 5 4 4 Worker 11 | . 3 5 3 Builder 6 | . . 4 2 Hauler 9 | . 2 4 3 Recycler 6 | . . 2 4 Operator 2 | . 1 1 . Watcher 8 | . . 5 3 Swarmer 22 | . 10 9 3 Grunt 41 | . 9 16 16 Brawler 1 | . . . 1 Duelist 3 | . . . 3 Sentry 12 | . . 6 6 Hunter 2 | . . . 2 Heavy 1 | . . . 1 Best Kill Streak 8 | . 4 5 8 Combat Bots Only 6 | . 3 5 6 Max Kills in Single Turn 2 | . 1 2 2 Gunslinging . | . . . . Exploded 2 | . . . 2 Melee . | . . . . Uniques/NPCs Destroyed . | . . . . Combat | -11 -10 -9 -8 -------- Run | Yrd Mat Mat Mat Hostile Shots Fired 399 | . 56 123 220 Missed 106 | . 14 27 65 Hits 293 | . 42 96 155 Melee 8 | . . . 8 Projectile 285 | . 42 96 147 Critical Strikes 12 | . 2 2 8 Damage Taken 4527 | . 417 1011 3099 Core 771 | . 103 111 557 Absorbed by Shields . | . . . . Core Remaining (%) 76 | 100 58 72 . Volleys Fired 266 | . 55 105 106 Largest 3 | . 2 3 3 Hottest 180 | . 120 180 135 Shots Fired 738 | . 110 313 315 Gun 470 | . 73 131 266 Cannon 268 | . 37 182 49 Launcher . | . . . . Special . | . . . . Kinetic 414 | . 73 104 237 Thermal 242 | . 37 182 23 Explosive . | . . . . Electromagnetic 82 | . . 27 55 Robot Hit Streak 15 | . 8 13 15 Robot Miss Streak 9 | . 5 6 9 Penetration Max 1 | . . . 1 Secondary Targets 7 | . 1 1 5 Max Gunslinging Chain 1 | . 1 1 1 Shots Hit Robots 440 | . 56 162 222 Core Hits 206 | . 33 75 98 Critical Kills 4 | . 1 1 2 Critical Parts Destroyed 2 | . . . 2 Critical Strikes 9 | . 1 1 7 Burn 1 | . . . 1 Destroy 6 | . 1 1 4 Blast 2 | . . . 2 Melee Attacks . | . . . . Impact . | . . . . Slashing . | . . . . Piercing . | . . . . Sneak Attacks . | . . . . Combat Hostiles . | . . . . Follow-up Attacks . | . . . . Damage Inflicted 7879 | . 798 2657 4424 Guns 4691 | . 430 1160 3101 Cannons 2544 | . 368 1497 679 Explosions 644 | . . . 644 Melee . | . . . . Ramming . | . . . . Kinetic 4009 | . 430 744 2835 Thermal 2508 | . 368 1497 643 Explosive 208 | . . . 208 Electromagnetic 1154 | . . 416 738 Impact . | . . . . Slashing . | . . . . Piercing . | . . . . Highest Corruption 7 | . 7 . . Average Corruption 6 | . 6 . . Corruption Purged . | . . . . Corruption Blocked . | . . . . Effects 44 | . 44 . . Message Errors 9 | . 9 . . Matter Fused 10 | . 10 . . Heat Flow Errors 7 | . 7 . . Energy Discharges 6 | . 6 . . Data Loss (minor) 3 | . 3 . . Data Loss (major) 4 | . 4 . . Misfires 2 | . 2 . . Alerts 1 | . 1 . . Weapon Failures 2 | . 2 . . Overload Shots . | . . . . Overflow Damage 50 | . . 6 44 Projectiles 6 | . . 6 . Explosions 44 | . . . 44 Melee . | . . . . Knockbacks 7 | . . . 7 Impact . | . . . . Kinetic 7 | . . . 7 Secondary . | . . . . Self-Inflicted Damage 170 | . . . 170 Shots 3 | . . . 3 Rammed . | . . . . Targets Rammed . | . . . . Kicked . | . . . . Crushed . | . . . . Highest Temperature 648 | . 258 648 513 Average Temperature 96 | . 86 116 80 Received Heat Transfer 1338 | . 168 333 837 Effects 17 | . . 9 8 Shutdowns 3 | . . 2 1 Energy Bleed 4 | . . 2 2 Matter Decay 2 | . . 2 . Short Circuit 1 | . . 1 . Damage (minor) 3 | . . 1 2 Damage (major) 4 | . . 1 3 Siege Activations . | . . . . Martial Activations . | . . . . Shielding Activations . | . . . . Robots Disrupted 1 | . . . 1 Combat Hostiles 1 | . . . 1 Robots Corrupted 2 | . . 1 1 Combat Hostiles 2 | . . 1 1 Parts Fried 2 | . . 2 . Impact Corruptions . | . . . . Robots Melted . | . . . . Combat Hostiles . | . . . . Parts Melted 3 | . 1 1 1 Heat Transferred 4909 | . 777 3145 987 Parts Sabotaged . | . . . . Parts Stolen . | . . . . Parts Stripped . | . . . . Power Chain Reactions 3 | . . . 3 Alert | -11 -10 -9 -8 ------- Run | Yrd Mat Mat Mat Maximum Alert Level 3 | . . 1 3 Low Security (%) 64 | 100 100 67 13 Level 1 33 | . . 32 75 Level 2 1 | . . . 8 Level 3 . | . . . 2 Level 4 . | . . . . Level 5 . | . . . . High Security . | . . . . Max Security . | . . . . Peak Influence 737 | . 155 376 737 Initial 111 | . . 11 111 Average 153 | . 53 138 315 Influence Increases 2785 | . 514 1011 1260 Destroy 0b10 Robot/C 1640 | . 380 620 640 Destroy 0b10 Robot/NC 210 | . 30 105 75 Destroy Leader 434 | . 84 168 182 Successful Hack 54 | . 18 19 17 Disable Machine 165 | . . 45 120 Anti-Garrison Action 150 | . . . 150 Destroy Structure 27 | . 2 9 16 Lose Combat Pursuer 105 | . . 45 60 Influence Decreases 2120 | . 486 775 859 Entered New Map 170 | . . 17 153 Time Decay 1590 | . 486 578 526 Lost Part 210 | . . 30 180 Purge Threat 150 | . . 150 . Squads Dispatched 17 | . 4 3 10 Investigation 5 | . 2 2 1 Extermination . | . . . . Reinforcement 6 | . 2 1 3 Assault 2 | . . . 2 Garrison 4 | . . . 4 Intercept . | . . . . Searches Triggered . | . . . . Construction Impeded 1 | . . . 1 Haulers Reinforced . | . . . . Active Scanning Responses . | . . . . Cargo Convoy Interrupts . | . . . . Stealth | -11 -10 -9 -8 --------- Run | Yrd Mat Mat Mat Distress Signals 10 | . 5 2 3 Communications Jammed . | . . . . Distress Signals . | . . . . Times Spotted 122 | . 28 44 50 Peak Tracking Total 7 | . 5 6 7 Tactical Retreats 5 | . . 1 4 Traps | -11 -10 -9 -8 ------- Run | Yrd Mat Mat Mat Traps Triggered 6 | . 5 1 . Indirectly . | . . . . Trap Hack Attempts . | . . . . Triggered . | . . . . Disarmed . | . . . . Reprogrammed . | . . . . Reused . | . . . . Traps Extracted . | . . . . Installed . | . . . . Triggered . | . . . . Machines | -11 -10 -9 -8 ---------- Run | Yrd Mat Mat Mat Machines Disabled 12 | . . 3 9 Max in Single Turn 2 | . . 2 2 Garrison Access 1 | . . . 1 Machines Repaired . | . . . . Machines Dismantled . | . . . . Machines Sabotaged . | . . . . Overloaded Fab Kills . | . . . . Hacking | -11 -10 -9 -8 --------- Run | Yrd Mat Mat Mat Machines Accessed 17 | . 5 7 5 Terminals 11 | . 3 5 3 Fabricators . | . . . . Repair Stations . | . . . . Recycling Units 3 | . 2 1 . Scanalyzers 2 | . . 1 1 Garrison Access 1 | . . . 1 Total Hacks 40 | . 11 18 11 Successful 28 | . 8 14 6 Failed 12 | . 3 4 5 Catastrophic . | . . . . Database Lockouts . | . . . . Manual . | . . . . Terminals 28 | . 8 14 6 Fabricators . | . . . . Repair Stations . | . . . . Recycling Units 4 | . 3 1 . Scanalyzers 6 | . . 3 3 Garrison Access 2 | . . . 2 Terminal Hacks 20 | . 5 11 4 Record 6 | . 2 3 1 Robot Analysis 1 | . . . 1 Prototype ID Bank 1 | . . . 1 Emergency Access Points 1 | . . 1 . Alert Level 6 | . 1 4 1 Unreport Threat 1 | . . 1 . Locate Traps 1 | . 1 . . Dispatch Records 1 | . 1 . . Maintenance Status 1 | . . 1 . Hauler Manifests 1 | . . 1 . Fabricator Hacks . | . . . . Repair Station Hacks . | . . . . Recycling Unit Hacks 4 | . 3 1 . Process 1 | . 1 . . Report Inventory 3 | . 2 1 . Scanalyzer 4 | . . 2 2 Insert Component 2 | . . 1 1 Analyze 2 | . . 1 1 Garrison Access Hacks . | . . . . Unauthorized Hacks . | . . . . Terminals . | . . . . Fabricators . | . . . . Repair Stations . | . . . . Recycling Units . | . . . . Scanalyzers . | . . . . Garrison Access . | . . . . Data Cores Recovered 1 | . . 1 . Used . | . . . . Hacking Detections 13 | . 3 5 5 Full Trace Events 4 | . 2 1 1 Feedback Events . | . . . . Feedback Blocked . | . . . . Robot Schematics Acquired . | . . . . Robots Built . | . . . . Authchips . | . . . . Time . | . . . . Total Robot Build Rating . | . . . . Part Schematics Acquired 2 | . . 1 1 Parts Built . | . . . . Authchips . | . . . . Time . | . . . . Total Part Build Rating . | . . . . Parts Repaired . | . . . . Time . | . . . . Parts Recycled . | . . . . Recycled Matter 174 | . 174 . . Retrieved Matter . | . . . . Retrieved Components . | . . . . Parts Scanalyzed 2 | . . 1 1 Part Schematics Acquired 2 | . . 1 1 Parts Damaged . | . . . . Bothacking | -11 -10 -9 -8 ------------ Run | Yrd Mat Mat Mat Used RIF Installer . | . . . . Robots Hacked . | . . . . Non-combat . | . . . . Combat . | . . . . Robot Hacks Applied . | . . . . Relay Couplers Released 2 | . . . 2 Machine Destruction 2 | . . . 2 Fabnet Peak Effective % . | . . . . Robots Rewired . | . . . . Allies Hacked . | . . . . Hacks Repelled . | . . . . Allies | -11 -10 -9 -8 -------- Run | Yrd Mat Mat Mat Total Allies . | . . . . Largest Group . | . . . . Highest-Rated Group . | . . . . Highest-Rated Ally . | . . . . Total Orders . | . . . . Ally Attacks . | . . . . Total Damage . | . . . . Kills . | . . . . Allies Corrupted . | . . . . Allies Melted . | . . . . Intel | -11 -10 -9 -8 ------- Run | Yrd Mat Mat Mat Active Infowar (turns) 2672 | . . 2672 . Sensors 1077 | . . 1077 . T.N.C. 1595 | . . 1595 . Robot Analysis Total 1 | . . . 1 Derelict Logs Recovered . | . . . . Drone Launches . | . . . . Drone Recoveries . | . . . . Exploration | -11 -10 -9 -8 ------------- Run | Yrd Mat Mat Mat Turns Passed 6323 | 124 1721 3000 1478 Spaces Moved 2333 | 61 721 1096 455 Core 13 | 5 . . 8 Treads 2320 | 56 721 1096 447 Legs . | . . . . Wheels . | . . . . Hover . | . . . . Flight . | . . . . Fastest Speed 50 | 50 160 225 50 Average Speed 224 | 150 211 233 233 Slowest Speed 312 | 160 240 312 242 Overloaded Moves . | . . . . Propulsion Burnouts . | . . . . Robots Hopped . | . . . . Potential Cave-ins . | . . . . Cave-ins Triggered . | . . . . Exploration Rate (%) 47 | 4 91 58 38 Regions Visited 3 Branch Regions . Pre-discovered Areas . | . . . . Known Exits Taken . | . . . . Unknown Exits Taken 3 | 1 1 1 . Scrap Searched . | . . . . Spaces Dug . | . . . . Terrain Destroyed 23 | . . . 23 Melee . | . . . . Projectile 4 | . . . 4 AOE 19 | . . . 19 Terrain Rammed . | . . . . Walls Destroyed . | . . . . Machines Disabled . | . . . . Actions | -11 -10 -9 -8 --------- Run | Yrd Mat Mat Mat Total 2850 | 90 816 1307 637 Wait 88 | 22 14 34 18 Move 2330 | 60 720 1095 455 Hop . | . . . . Pick Up 49 | 2 15 19 13 Fast Attach 15 | 6 2 3 4 Attach 27 | . . 13 14 Detach . | . . . . Swap 36 | . 7 17 12 Drop 39 | . 3 21 15 Fire 266 | . 55 105 106 Melee . | . . . . Ram . | . . . . Kick . | . . . . Crush . | . . . . Escape Stasis . | . . . . Rewire . | . . . . Trap . | . . . . Miscellaneous . | . . . . Route ------- -11/Scrapyard -10/Materials (discovered 4 exits: *Mat x2 / [*Min x2]) -9/Materials (discovered 2 exits: *Mat / [*Min]) -8/Materials (discovered 1 exit: [*Fac]) History --------- Turn | Location | Event 35 | -11/Scrapyard | Discovered new exit (range 16) 125 | -11/Scrapyard | Entered Materials 318 | -10/Materials | Build established: Mutant 502 | -10/Materials | Discovered new exit (range 14) 825 | -10/Materials | Derelicts attacked the area 1069 | -10/Materials | Discovered new exit (range 7) 1234 | -10/Materials | Discovered new exit (range 12) 1558 | -10/Materials | Discovered new exit (range 15) 1846 | -10/Materials | Entered another Materials area 1846 | -9/Materials | Evolved 2 slots: Utility x1, Weapon x1 2147 | -9/Materials | Build established: Skirmisher 3154 | -9/Materials | Discovered new exit (range 5) 3742 | -9/Materials | Discovered new exit (range 13) 3993 | -9/Materials | Build established: Scavenger-Tank 4556 | -9/Materials | Build established: Tank 4846 | -9/Materials | Entered another Materials area 4846 | -8/Materials | Evolved 2 slots: Propulsion x2 5074 | -8/Materials | Garrison activated, responded to threat 5308 | -8/Materials | Build established: Scavenger-Gunner 5334 | -8/Materials | Discovered new exit (range 16) 5561 | -8/Materials | Lost 3 parts (1u2w) 5957 | -8/Materials | Garrison activated, responded to threat 6262 | -8/Materials | Core integrity fell below 50% 6270 | -8/Materials | Lost 5 parts (1p2n2w) 6316 | -8/Materials | Core integrity fell below 20% 6324 | -8/Materials | Destroyed by H-55 Commando with Gauss Rifle Last Messages --------------- 06291_ U-05 Engineer lays Concrete. 06299_ Penetrated by Slug. 06299_ Med. Laser destroyed. 06301_ M-13 Machinist fits Backup Propulsion I on U-05 Engineer. 06302_ Penetrated by Slug. 06302_ Lgt. Nuclear Core destroyed. 06303_ Lgt. Treads destroyed. 06305_ Penetrated by Slug. 06305_ Imp. Light Cannon destroyed. 06308_ Slug penetrates Wall. 06308_ Lgt. Treads destroyed. 06310_ M-13 Machinist repairs H-55 Commando. 06314_ Penetrated by Slug. 06318_ Dropped Lgt. Treads. 06318_ Dropped Adv. Treads. 06319_ Dropped Huge Storage Unit. 06319_ Discarded Targeting Computer. 06320_ Discarded Adv. Targeting Computer. 06320_ Penetrated by Slug. Map ----- +----------------------------------------------------+ | ??????????????????????????????????????????? | | ??????????????????????????????????????????? | | ??????????????????????????????????????????? | | ??????????????????????????????????????????? | | ??????????????????????????????????????????? | | ??????????????????????????????????????????? | | ??????????????????????????????????????????? | | ??????????????????????????????????????????? | | ??????????????????????????????????????????? | | ??????????????????????????????????????????? | | ??????????????????????????????????????????? | | ??????????????????????????????????????????? | | ###############??????##########???????????? | | ## #??????# #???????????? | | ## """ #??????# """ #???????????? | | ## """ #??????# """ #???????????? | | ## """ #??????# """ #???????????? | | = ## #??????# #???????????? | | "" ## """ #??????# """ #???????????? | | "" ## """ #??????# """ #???????????? | | "" !## """ #??????# """ #???????????? | | % # #??????# #???????????? | | ############+#############+####???????????? | | = #???????????? | | h !!!! < #???????????? | | """ ig ===!] @ #???????????? | | """ ################# #####???????????? | | " ###?????????????# #???????????????? | | #?????????????# #???????????????? | | #?????????????# #???????????????? | | #?????????????# #???????????????? | | ##????????????# #???????????????? | | # #???????????## ##??????????????? | | =%= ##???????????# u #??????????????? | | # #????????????#% #??????????????? | | %= #????????????# %#??????????????? | | #????????????#%! [#??????????????? | | ###????????????# ** #??????????????? | | %! ###########????### ###??????????????? | | % % # #?????##=##???????????????? | | ! %# T #?????##!#########????????? | | "Y" %# #??????#%##! #????????? | | """ %# #?????## ## #????????? | | %+! #?????# # "" #????????? | | %#%! #?????# + S"" #????????? | | ### #/ = #?????# [ # "" #????????? | | ??# # !! #?????## ## #????????? | | ??# %####" ####??????# ######+########### | | ?#% %#??#"G"#?????????# #????# #?# # | | ## #??# " #?????????# #????# #?# # | +----------------------------------------------------+ Best States ------------- Heat Dissipation 48 Energy Generation 14 Energy Capacity 280 Matter Stores 300 Matter Capacity 300 Sight Range 16 Robot Scan Range 14 Terrain Scan Density 10 Armor Coverage 150 Evasion (%) 40 Targeting Accuracy 13 Recoil Reduction 4 Item Schematics ----------------- Adv. Treads | -9/Materials | Scanalyzed Hpw. Tractor Beam | -8/Materials | Scanalyzed Robot Schematics ------------------ None Fabricated ------------ Nothing Repaired ---------- Nothing Alien Tech Used ----------------- None Achievements -------------- None Challenges ------------ None Game ------ Seed TeslaMultireflexPendant Manual? 0 Play Time 00:41:07 Cumulative 14.1 hours Start 2025.07.17 @ 18:02:21 End 2025.07.18 @ 13:03:56 Sessions 3 Manual Loads 0 Difficulty Rogue Special Mode None Game No. 26 Rogue 26 Adventurer 0 Explorer 0 Win Type - Total 0 Types 0/0/0/0/0/0/0/0/0/0 Lore% 7 Gallery% 15 Achievement% 18 Wizard Run 0 Options --------- Layout 1 ASCII 0 Keyboard 0 Movement Arrows Keybinds 0 Fullscreen 1 Font 24/Smallcaps Map View 50x35 Zoom Use 0% Tactical HUD 1 Map Filters NONE Filters NONE Steam 1 RUN: c8be892a-fb9d-4ef0-8324-15311502b27d